bitfinex-derivatives/quotes_ETHF0:USTF0_20241104
["timestamp","ask_amount","ask_price","bid_price","bid_amount"]
[1730739156081,41.21407,2416.1,2416.0,4.1392]
[1730739157079,41.21407,2416.1,2416.0,4.55329]
[1730739157272,41.21407,2416.1,2416.0,4.1392]
[1730739160076,41.21407,2416.1,2416.0,4.55329]
[1730739160274,41.21407,2416.1,2416.0,4.1392]
[1730739160582,40.8,2416.1,2415.5,1.377]
[1730739160772,3.2078,2415.8,2415.7,4.1392]
[1730739160972,0.41417,2415.6,2415.5,0.41417]
[1730739161180,3.62192,2415.8,2415.7,4.1392]
[1730739161574,44.0078,2416.1,2415.7,4.1392]
[1730739161788,0.41411,2415.9,2415.8,0.41411]
[1730739162084,0.41411,2415.9,2415.8,0.41412]
[1730739162284,0.4141,2416.0,2415.9,0.4141]
[1730739162785,0.41409,2416.0,2415.9,4.1392]
[1730739163486,0.41414,2415.7,2415.6,1.75735]
[1730739163688,0.41411,2415.9,2415.8,4.1392]
[1730739163984,0.41411,2415.9,2415.8,4.55332]
[1730739164182,44.0078,2416.1,2415.8,4.1392]
[1730739164385,44.0078,2416.1,2415.6,1.3432]
[1730739164386,44.42187,2416.1,2416.0,4.1392]
[1730739165080,3.62187,2416.1,2416.0,4.1392]
[1730739165489,3.2078,2416.1,2416.0,4.55329]
[1730739165683,40.8,2416.2,2416.0,4.1392]
[1730739165878,40.8,2416.2,2416.1,4.55327]
[1730739166288,3.97470523,2416.7,2416.1,4.1392]
[1730739166289,0.41402,2416.4,2416.1,4.1392]
[1730739166586,0.41402,2416.4,2416.0,1.03523]
[1730739166587,0.41399,2416.6,2416.5,4.1392]
[1730739166788,41.21399,2416.6,2416.5,4.1392]
[1730739166995,44.42179,2416.6,2416.5,4.1392]
[1730739167185,44.42179,2416.6,2415.8,3.2078]
[1730739167186,0.41411,2415.9,2415.8,3.2078]
[1730739167382,4.38877523,2416.1,2416.0,4.1392]
[1730739168085,3.97470523,2416.1,2415.4,3.2078]
[1730739168286,0.41411,2415.9,2415.8,4.1392]
[1730739168493,0.41411,2415.9,2415.8,4.55332]
[1730739168780,0.41411,2415.9,2415.8,4.1392]
[1730739168980,41.21411,2415.9,2415.8,4.1392]
[1730739169184,41.21411,2415.9,2415.8,4.55332]
[1730739169486,41.21411,2415.9,2415.8,4.1392]
[1730739169887,41.21411,2415.9,2415.8,4.55332]
[1730739170092,40.8,2415.9,2415.8,4.55332]
[1730739170487,0.4141,2416.0,2415.9,0.41411]
[1730739170784,3.97470523,2416.3,2415.9,4.1392]
[1730739170981,4.38874523,2416.3,2416.2,4.1392]
[1730739171383,0.41404,2416.3,2416.2,4.55325]
[1730739171685,0.41404,2416.3,2416.2,4.1392]
[1730739171991,0.41404,2416.3,2416.2,4.55324]
[1730739172189,0.41402,2416.4,2416.2,0.41405]
[1730739172391,0.41404,2416.3,2416.2,3.29105]
[1730739172593,0.41404,2416.3,2416.2,6.49885]
[1730739172997,0.41403,2416.4,2416.3,0.41402]
[1730739173187,3.97470523,2416.7,2416.2,6.0848]
[1730739173388,0.41399,2416.6,2416.4,0.41401]
[1730739173694,3.97470523,2416.7,2416.2,6.0848]
[1730739173892,3.97470523,2416.7,2416.4,0.414]
[1730739174082,3.97470523,2416.7,2416.2,6.0848]
[1730739174286,40.8,2416.9,2416.6,3.2078]
[1730739174594,40.8,2416.9,2416.2,2.877]
[1730739174600,40.8,2416.9,2416.7,0.41396]
[1730739174601,0.41397,2416.8,2416.7,0.41396]
[1730739174984,0.41397,2416.8,2416.7,4.1376]
[1730739174985,0.41395,2416.8,2416.7,4.1376]
[1730739175185,0.41397,2416.7,2416.6,0.41397]
[1730739175385,40.8,2416.9,2416.3,2.11411997]
[1730739175591,40.8,2416.9,2416.4,1.07902997]
[1730739175793,0.41396,2416.8,2416.7,0.41396]
[1730739176299,41.21395,2416.9,2416.8,0.41395]
[1730739176992,41.21395,2416.9,2416.8,3.62175]
[1730739177192,0.41397,2416.8,2416.7,0.41396]
[1730739177899,40.8,2416.9,2416.6,0.41397]
[1730739177900,0.41397,2416.7,2416.6,0.41397]
[1730739178190,3.97470523,2416.7,2416.2,2.877]
[1730739178699,0.41401,2416.5,2416.4,0.414]
[1730739178900,0.41403,2416.4,2416.3,0.41402]
[1730739179086,0.41402,2416.5,2416.4,0.41401]
[1730739179291,0.41399,2416.6,2416.5,0.41399]
[1730739179487,3.97470523,2416.7,2416.2,2.877]
[1730739179999,40.8,2416.9,2416.2,2.877]
[1730739180193,40.8,2416.9,2416.4,3.2078]
[1730739180391,40.8,2416.9,2416.3,1.07902997]
[1730739180699,0.41399,2416.7,2416.6,0.41398]
[1730739181192,40.8,2416.9,2416.3,1.07902997]
[1730739181392,0.41401,2416.6,2416.5,0.414]
[1730739182391,0.41401,2416.5,2416.4,0.41401]
[1730739182899,0.41404,2416.3,2416.2,3.29104]
[1730739183292,0.41403,2416.4,2416.3,0.41403]
[1730739183693,0.41403,2416.4,2416.3,3.62183]
[1730739184294,3.97470523,2416.7,2416.4,0.41401]
[1730739184498,0.41399,2416.6,2416.5,0.41399]
[1730739186095,0.41399,2416.6,2416.5,3.62179]
[1730739186297,43.28835,2416.9,2416.5,7.3462]
[1730739186298,40.8,2416.9,2416.5,7.3462]
[1730739186495,40.8,2416.9,2416.8,3.62175]
[1730739186806,41.21393,2416.9,2416.8,3.62175]
[1730739186996,40.8,2416.9,2416.8,3.62175]
[1730739187495,40.8,2416.9,2416.8,7.75935]
[1730739188191,40.8,2416.9,2416.8,3.62175]
[1730739188390,40.8,2416.9,2416.8,7.75935]
[1730739188594,5.39060523,2417.7,2416.8,7.3454]
[1730739188595,6.42513523,2417.7,2416.8,7.3454]
[1730739188790,0.41386,2417.4,2417.3,0.41386]
[1730739189190,0.41388,2417.3,2417.2,0.41387]
[1730739190100,0.41388,2417.3,2417.2,3.62167]
[1730739190299,0.41388,2417.3,2417.2,0.41387]
[1730739191099,1.03471,2417.2,2416.6,3.2078]
[1730739191306,1.03471,2417.2,2416.6,3.62176]
[1730739191307,0.41397,2416.7,2416.6,3.62176]
[1730739191810,0.41397,2416.7,2416.6,3.62179]
[1730739192600,0.41397,2416.7,2416.6,3.2078]
[1730739192910,3.2078,2416.8,2416.3,2.7751]
[1730739193107,0.41402,2416.5,2416.4,0.41402]
[1730739193497,6.45155523,2416.9,2416.3,2.7751]
[1730739193697,5.41670523,2416.9,2416.5,3.2078]
[1730739193904,0.41396,2416.8,2416.7,0.41395]
[1730739194201,41.21396,2416.8,2416.7,3.62175]
[1730739194405,41.21396,2416.8,2416.7,0.41395]
[1730739196197,1.03438288,2416.9,2416.8,0.41395]
[1730739196400,1.44831288,2416.9,2416.8,1.84695]
[1730739196599,1.03438288,2416.9,2416.8,0.41395]
[1730739196906,1.03438288,2416.9,2416.8,3.62175]
[1730739197404,1.03438288,2416.9,2416.8,0.41395]
[1730739197608,1.03438288,2416.9,2416.8,3.62175]
[1730739198207,1.03438288,2416.9,2416.8,7.75935]
[1730739198398,40.8,2417.3,2417.2,0.41388]
[1730739199307,5.70722,2417.9,2417.4,0.41385]
[1730739199502,5.70722,2417.9,2417.6,0.4138]
[1730739199503,0.41381,2417.7,2417.6,0.4138]
[1730739200008,0.41379,2417.8,2417.7,0.41378]
[1730739201010,0.41379,2417.8,2417.7,3.62158]
[1730739201216,0.41379,2417.8,2417.7,0.41378]
[1730739201704,4.24207,2418.3,2417.7,3.2078]
[1730739201909,4.24207,2418.3,2417.5,1.03458]
[1730739201910,0.41379,2417.9,2417.8,0.41377]
[1730739202306,41.21379,2417.9,2417.8,0.41377]
[1730739202516,41.21379,2417.9,2417.8,3.62157]
[1730739202804,41.21379,2417.9,2417.8,0.41377]
[1730739203010,0.4138,2417.8,2417.7,0.41379]
[1730739204420,0.41381,2417.7,2417.6,0.41379]
[1730739204909,0.41388,2417.3,2417.2,0.41387]
[1730739205105,0.41388,2417.2,2417.1,3.62169]
[1730739205506,0.41388,2417.2,2417.1,3.2078]
[1730739205911,41.21388,2417.2,2417.1,3.2078]
[1730739206516,40.8,2417.2,2417.1,3.6217]
[1730739206714,40.8,2417.2,2417.1,0.4139]
[1730739207715,40.8,2417.2,2417.1,4.5507]
[1730739208303,40.8,2417.2,2417.1,0.4139]
[1730739208507,41.21388,2417.2,2417.1,0.4139]
[1730739208714,40.8,2417.2,2417.0,3.2078]
[1730739208912,40.8,2417.2,2416.7,2.49492]
[1730739209114,0.41393,2417.0,2416.9,0.41391]
[1730739209315,0.41393,2417.0,2416.9,3.62171]
[1730739209819,0.41392,2417.1,2417.0,0.41391]
[1730739210007,0.41392,2417.1,2416.4,5.0537352]
[1730739210008,9.5814,2417.1,2416.3,1.07902997]
[1730739210212,3.97470523,2416.4,2415.6,1.07902997]
[1730739210515,3.97470523,2416.1,2415.6,1.07902997]
[1730739210817,3.97470523,2415.9,2415.4,1.4228]
[1730739211316,3.97470523,2415.9,2415.2,0.41423]
[1730739211317,0.41418,2415.5,2415.2,0.41423]
[1730739211620,0.41416,2415.6,2415.3,0.4142]
[1730739212211,40.8,2415.8,2415.5,3.2078]
[1730739212516,40.8,2415.8,2415.2,0.41421]
[1730739212821,0.41417,2415.6,2415.3,0.41421]
[1730739213018,0.41416,2415.6,2415.1,0.41424]
[1730739213317,40.8,2415.8,2415.3,3.2078]
[1730739213517,40.8,2415.8,2415.6,3.2078]
[1730739213717,40.8,2415.8,2415.0,1.3932]
[1730739213718,41.21412,2415.8,2415.5,0.41416]
[1730739213913,41.21412,2415.8,2415.3,0.4142]
[1730739213914,0.41416,2415.7,2415.3,0.4142]
[1730739214117,0.41416,2415.7,2415.4,3.62199]
[1730739214421,0.41417,2415.6,2415.2,3.2078]
[1730739214617,0.41417,2415.6,2415.3,0.4142]
[1730739214813,0.41415,2415.7,2415.4,0.41418]
[1730739215018,0.41418,2415.5,2415.3,0.41421]
[1730739215221,3.97470523,2415.7,2415.3,3.2078]
[1730739215515,40.8,2415.8,2415.6,3.62196]
[1730739215719,40.8,2415.8,2415.6,3.2078]
[1730739215912,40.8,2415.8,2415.7,0.41414]
[1730739216112,3.97470523,2416.2,2415.7,3.2078]
[1730739216322,0.4141,2416.0,2415.7,0.41414]
[1730739216524,3.97470523,2416.2,2415.3,3.2078]
[1730739216820,3.97470523,2416.2,2415.1,1.03558]
[1730739216821,3.2078,2416.1,2415.4,3.2078]
[1730739217012,41.21409,2416.0,2415.7,0.41413]
[1730739217219,41.21409,2416.0,2415.4,3.2078]
[1730739217418,40.8,2416.0,2415.8,0.41411]
[1730739217719,40.8,2416.0,2415.9,0.41411]
[1730739218117,4.38877523,2416.2,2415.9,4.55331]
[1730739218312,4.38877523,2416.2,2415.9,0.41411]
[1730739218616,45.18877523,2416.2,2415.9,0.41411]
[1730739218812,40.8,2416.2,2415.8,1.4542]
[1730739219014,0.41403,2416.4,2416.2,0.41405]
[1730739219423,41.21403,2416.4,2416.2,0.41405]
[1730739219915,40.8,2416.4,2416.1,3.2078]
[1730739220222,40.8,2416.4,2416.2,0.41405]
[1730739220411,40.8,2416.4,2416.1,3.2078]
[1730739220616,8.61190523,2416.7,2416.1,3.2078]
[1730739220820,4.38868523,2416.7,2416.5,0.414]
[1730739221018,0.414,2416.5,2416.4,3.2078]
[1730739221221,0.414,2416.5,2415.9,1.4981]
[1730739221222,3.97470523,2416.5,2415.9,1.4981]
[1730739221419,3.97470523,2416.2,2415.8,2.8713]
[1730739221626,0.41413,2415.8,2415.6,0.41415]
[1730739221925,3.97470523,2416.0,2415.5,0.41417]
[1730739222220,41.21411,2415.9,2415.6,0.41415]
[1730739222521,40.8,2415.9,2415.4,4.6715]
[1730739222719,0.41413,2415.8,2415.6,0.41415]
[1730739222914,40.8,2415.9,2415.8,0.41412]
[1730739223619,0.41406,2416.2,2416.0,0.41409]
[1730739223814,1.4035,2416.5,2416.2,0.41404]
[1730739223815,0.41402,2416.4,2416.2,0.41404]
[1730739224008,41.21402,2416.4,2416.2,0.41404]
[1730739224214,40.8,2416.4,2415.9,3.2078]
[1730739224413,0.41406,2416.2,2416.0,0.41408]
[1730739224616,3.2078,2416.3,2415.6,3.2078]
[1730739225120,0.41405,2416.2,2416.0,0.41409]
[1730739225429,3.62185,2416.2,2416.0,0.41409]
[1730739225722,44.77470523,2416.4,2416.2,0.41405]
[1730739225723,40.8,2416.4,2416.2,0.41405]
[1730739225918,40.8,2416.4,2416.3,3.62184]
[1730739226113,44.42182,2416.4,2416.3,0.41404]
[1730739226421,40.8,2416.4,2416.3,0.41404]
[1730739226925,1.453,2416.6,2416.5,0.414]
[1730739226926,0.41399,2416.6,2416.5,0.414]
[1730739227220,41.21399,2416.6,2416.5,0.414]
[1730739227521,40.8,2416.6,2416.4,0.41402]
[1730739227727,40.8,2416.6,2416.5,0.414]
[1730739227923,40.8,2416.6,2416.4,0.41401]
[1730739228118,3.62181,2416.5,2416.4,0.41401]
[1730739228514,3.2078,2416.5,2416.1,2.8409]
[1730739228718,3.2078,2416.5,2416.1,0.76711568]
[1730739228719,0.41401,2416.5,2416.1,0.76711568]
[1730739228918,3.2078,2416.4,2416.0,0.41409]
[1730739229118,3.2078,2416.4,2416.0,1.03523]
[1730739229315,3.2078,2416.4,2416.3,0.41404]
[1730739229726,3.2078,2416.7,2416.3,1.70458076]
[1730739229926,3.2078,2416.7,2416.6,0.41399]
[1730739230127,44.0078,2416.7,2416.6,0.41399]
[1730739230328,3.2078,2416.7,2416.6,0.41399]
[1730739230525,3.2078,2417.0,2416.3,1.03507]
[1730739230821,3.2078,2416.7,2416.4,1.67940421]
[1730739231027,3.2078,2416.7,2416.5,0.64434421]
[1730739231220,3.97470523,2417.4,2416.8,0.41395]
[1730739231221,0.41394,2416.9,2416.8,0.41395]
[1730739231427,3.62174,2416.9,2416.8,0.41395]
[1730739231829,3.2078,2416.9,2416.8,0.41395]
[1730739232128,3.62173,2416.9,2416.8,0.41395]
[1730739232334,44.42173,2416.9,2416.8,0.41395]
[1730739232629,47.89061924,2416.9,2416.8,0.41395]
[1730739233329,47.89061924,2416.9,2416.5,1.3948]
[1730739233528,3.2078,2416.6,2416.5,1.8088]
[1730739233723,3.2078,2416.6,2416.5,2.44968646]
[1730739233923,3.2078,2416.6,2416.5,1.8088]
[1730739234731,3.2078,2416.6,2416.5,0.414]
[1730739234929,7.09068924,2416.6,2416.5,0.414]
[1730739235129,6.67668924,2416.6,2416.5,0.414]
[1730739235325,7.09067924,2416.6,2416.5,0.414]
[1730739236230,6.67668924,2416.6,2416.5,0.414]
[1730739236529,0.41403,2416.4,2416.3,0.41403]
[1730739236729,3.46888924,2416.4,2416.3,0.64101443]
[1730739236938,3.46888924,2416.4,2416.3,0.41404]
[1730739237429,3.88290924,2416.4,2416.3,0.41404]
[1730739237637,0.41404,2416.3,2416.2,0.41404]
[1730739237938,0.41404,2416.3,2416.2,0.41405]
[1730739237939,3.2078,2416.3,2416.2,0.41405]
[1730739238137,6.67668924,2416.3,2416.2,0.41405]
[1730739238439,3.2078,2416.3,2416.2,0.41405]
[1730739238640,40.8,2416.9,2416.8,0.41395]
[1730739238823,3.2078,2417.3,2416.5,1.03501]
[1730739239132,0.41394,2416.9,2416.8,0.41394]
[1730739239438,0.41392,2417.0,2416.9,0.41393]
[1730739239634,3.46888924,2416.9,2416.6,1.8383]
[1730739239825,6.67668924,2416.7,2416.6,0.41398]
[1730739240035,3.46888924,2416.7,2416.6,0.41398]
[1730739240336,3.2078,2416.7,2416.6,0.41399]
[1730739240535,6.67668924,2416.7,2415.9,2.77262997]
[1730739240732,3.62183,2416.4,2416.3,0.41404]
[1730739240930,6.67668924,2416.4,2415.9,2.72886]
[1730739241123,3.46888924,2416.2,2416.0,0.63751232]
[1730739241333,3.46888924,2416.2,2415.8,5.0461]
[1730739241334,44.26888924,2416.1,2415.8,5.0461]
[1730739241535,44.26888924,2416.1,2415.9,0.41411]
[1730739241536,3.46888924,2416.0,2415.9,0.41411]
[1730739241738,3.46888924,2415.9,2415.8,0.41412]
[1730739241951,3.46888924,2415.9,2415.4,3.4526]
[1730739242131,3.2078,2415.7,2415.5,0.63295623]
[1730739242440,3.46888924,2416.0,2415.9,0.41411]
[1730739242737,6.67668924,2416.0,2415.9,0.41411]
[1730739243627,7.09077924,2416.0,2415.9,0.41411]
[1730739243828,6.67668924,2416.0,2415.9,0.41411]
[1730739244339,0.41415,2415.7,2415.2,4.31236]
[1730739244630,3.46888924,2415.6,2415.5,0.41417]
[1730739245035,3.2078,2415.8,2415.5,4.14]
[1730739245230,3.2078,2415.8,2415.7,0.41414]
[1730739245536,3.2078,2415.8,2415.6,3.6188]
[1730739245730,0.41411,2415.9,2415.6,3.6188]
[1730739245931,3.88299924,2415.9,2415.8,0.41412]
[1730739246337,3.46888924,2415.9,2415.8,0.41412]
[1730739246538,7.09079924,2415.9,2415.8,0.41412]
[1730739246834,6.67668924,2415.9,2415.8,0.41412]
[1730739247027,6.67668924,2415.9,2415.6,3.6188]
[1730739247229,3.88302924,2415.7,2415.6,0.41416]
[1730739247736,3.46888924,2415.7,2415.6,0.41416]
[1730739248742,3.46888924,2415.7,2415.1,11.83461523]
[1730739248743,0.41416,2415.6,2415.5,0.41416]
[1730739248934,3.46888924,2415.5,2415.2,0.069]
[1730739249130,3.46888924,2415.5,2415.4,0.41418]
[1730739249334,3.46888924,2415.5,2415.4,1.0428829]
[1730739249834,6.67668924,2415.5,2415.4,0.6287029]
[1730739250033,6.67668924,2415.5,2415.4,1.0428929]
[1730739250439,6.67668924,2415.5,2415.2,0.069]
[1730739250631,3.88309924,2415.3,2415.2,0.069]
[1730739250940,0.41427,2415.0,2414.9,0.41428]
[1730739251139,6.67668924,2415.0,2414.9,0.41428]
[1730739251340,47.47668924,2415.0,2414.9,0.41428]
[1730739251839,3.4054,2415.2,2414.9,1.03694258]
[1730739252140,3.2078,2415.4,2415.3,0.41421]
[1730739252339,47.47668924,2415.4,2415.3,0.41421]
[1730739252637,44.26888924,2415.4,2415.3,0.41421]
[1730739252836,3.46888924,2415.4,2415.3,0.41421]
[1730739253140,3.81955,2415.7,2415.3,0.61903533]
[1730739253141,3.4054,2415.7,2415.3,0.61903533]
[1730739253344,3.4054,2415.7,2415.4,0.41419]
[1730739253345,3.46888924,2415.5,2415.4,0.41419]
[1730739253635,3.46888924,2415.5,2415.4,1.03332468]
[1730739253837,3.46888924,2415.5,2415.4,0.41419]
[1730739254032,3.46888924,2415.5,2415.4,1.02869981]
[1730739254544,0.4141,2416.0,2415.9,0.4141]
[1730739254840,0.4141,2416.0,2415.5,1.03544]
[1730739254841,3.46888924,2415.6,2415.5,0.41417]
[1730739255042,3.46888924,2415.9,2415.7,0.41414]
[1730739255343,3.46888924,2415.9,2415.8,1.02882531]
[1730739256331,42.5558,2416.3,2415.8,4.85781531]
[1730739256544,42.96984,2416.3,2416.2,0.41405]
[1730739256936,46.43872924,2416.3,2416.2,1.02890856]
[1730739257339,46.02468924,2416.3,2416.2,1.02890856]
[1730739257544,46.43872924,2416.3,2416.2,1.02890856]
[1730739257940,0.41407,2416.2,2416.0,0.41407]
[1730739258247,3.46888924,2416.0,2415.9,0.41411]
[1730739258450,3.46888924,2416.0,2415.9,1.01639572]
[1730739260339,7.11454574,2416.0,2415.9,0.41411]
[1730739260535,6.70045574,2416.0,2415.9,0.41411]
[1730739260749,7.11454574,2416.0,2415.9,0.41411]
[1730739261243,0.41414,2415.8,2415.7,0.41413]
[1730739261445,3.46888924,2415.5,2415.4,0.41419]
[1730739261652,3.46888924,2415.5,2415.4,1.01674726]
[1730739262342,3.88305924,2415.5,2415.4,1.01674726]
[1730739262552,6.70045574,2415.5,2415.4,0.41419]
[1730739262846,7.11462574,2415.5,2415.4,0.41419]
[1730739263054,6.70045574,2415.5,2415.4,0.41419]
[1730739263440,0.41421,2415.4,2415.0,1.03565]
[1730739263644,3.46888924,2415.2,2415.1,1.01332963]
[1730739263951,3.46888924,2415.0,2414.9,2.18618]
[1730739264147,3.46888924,2415.0,2414.9,2.7806576]
[1730739264342,3.46888924,2415.0,2414.9,0.41428]
[1730739265943,40.8,2415.2,2415.1,0.41424]
[1730739266253,44.26888924,2415.2,2415.1,0.41424]
[1730739266845,3.46888924,2415.2,2415.1,0.41424]
[1730739267247,3.2078,2415.5,2415.4,0.41419]
[1730739267453,47.47668924,2415.5,2415.4,0.41419]
[1730739267947,6.67668924,2415.5,2415.4,0.41419]
[1730739269254,3.46888924,2415.5,2415.4,0.41419]
[1730739271150,3.88305924,2415.5,2415.4,0.41419]
[1730739271353,0.41419,2415.4,2415.2,0.41421]
[1730739271555,0.41423,2415.2,2415.1,0.41423]
[1730739271850,7.09091924,2415.2,2415.1,0.41423]
[1730739272250,44.26888924,2415.2,2415.1,0.41423]
[1730739272753,44.68311924,2415.2,2415.1,0.41423]
[1730739274757,0.41424,2415.1,2415.0,0.41425]
[1730739275056,3.46888924,2414.8,2414.7,3.62211]
[1730739276163,3.2315665,2415.6,2414.7,11.19785083]
[1730739276362,3.46888924,2415.2,2415.1,0.41424]
[1730739277253,3.46888924,2415.2,2415.1,3.62204]
[1730739277863,40.8,2415.5,2415.4,0.41419]
[1730739278266,44.68305924,2415.5,2415.4,0.41419]
[1730739278459,3.46888924,2415.5,2415.4,0.41419]
[1730739282063,40.8,2415.6,2415.5,0.41417]
[1730739282466,40.8,2415.6,2415.5,1.00215191]
[1730739282858,40.8,2415.6,2415.5,0.41417]
[1730739283062,40.8,2415.6,2415.5,1.00216341]
[1730739283270,40.8,2415.6,2415.5,1.00228277]
[1730739283574,40.8,2415.6,2415.5,1.00227176]
[1730739284267,44.26888924,2415.6,2415.5,1.00228067]
[1730739284471,44.26888924,2415.6,2415.5,0.41417]
[1730739284863,1.7973,2416.0,2415.2,3.2315665]
[1730739285061,3.46888924,2415.7,2415.6,0.41416]
[1730739285466,44.26888924,2415.7,2415.6,1.00275654]
[1730739286173,44.26888924,2415.7,2415.6,0.41416]
[1730739286571,44.26888924,2415.7,2415.6,0.99468763]
[1730739286868,44.26888924,2415.7,2415.6,0.41416]
[1730739287567,44.68302924,2415.7,2415.6,0.41416]
[1730739287870,44.26888924,2415.7,2415.6,0.41416]
[1730739288370,50.70825574,2415.7,2415.3,1.08285998]
[1730739288562,3.88307924,2415.4,2415.3,1.49705998]
[1730739289072,3.46888924,2415.4,2415.3,1.49705998]
[1730739289871,6.67668924,2415.4,2415.3,1.49705998]
[1730739290071,3.46888924,2415.4,2415.3,1.49705998]
[1730739290773,3.46888924,2415.4,2415.3,0.4142]
[1730739293576,0.41422,2415.3,2415.2,0.41421]
[1730739293773,3.88310924,2415.3,2415.2,0.41421]
[1730739294369,3.46888924,2415.3,2415.2,0.41421]
[1730739295474,3.88309924,2415.3,2415.2,0.41421]
[1730739296277,3.46888924,2415.3,2415.2,0.41421]
[1730739296473,3.88309924,2415.3,2415.2,0.41421]
[1730739296677,7.73598574,2415.3,2414.6,4.50035998]
[1730739296876,3.46888924,2414.8,2414.7,2.0663426]
[1730739297071,3.46888924,2414.8,2414.7,0.98348262]
[1730739297874,3.46888924,2414.8,2414.7,0.41431]
[1730739298075,3.88317924,2414.8,2414.7,0.41431]
[1730739298875,3.46888924,2414.8,2414.4,2.11874998]
[1730739299082,2.07759,2414.9,2414.5,4.81283304]
[1730739299281,2.07759,2414.9,2414.8,0.41429]
[1730739299783,5.54647924,2414.9,2414.8,0.41429]
[1730739300284,5.13218924,2414.9,2414.8,0.41429]
[1730739300683,5.13218924,2414.9,2414.6,1.5988]
[1730739300877,3.46888924,2414.7,2414.5,1.03585]
[1730739301072,0.4143,2414.8,2414.7,0.4143]
[1730739301273,3.46888924,2414.6,2414.5,0.41435]
[1730739301584,3.46888924,2414.6,2414.5,0.97978067]
[1730739301778,3.46888924,2414.6,2414.5,0.41435]
[1730739302080,2.07759,2414.9,2414.8,0.41429]
[1730739302081,1.6633,2414.9,2414.8,0.41429]
[1730739302382,2.07758,2414.9,2414.8,0.41429]
[1730739302577,0.4143,2414.8,2414.7,0.4143]
[1730739302776,3.88324924,2414.5,2414.4,0.41436]
[1730739302982,3.46888924,2414.5,2414.4,0.41436]
[1730739303280,44.26888924,2414.5,2414.4,0.41436]
[1730739303981,47.47668924,2414.5,2413.9,1.08285998]
[1730739304181,49.12698924,2414.5,2414.4,0.41436]
[1730739304378,49.54133924,2414.5,2414.4,0.41436]
[1730739304683,49.12698924,2414.5,2414.4,0.41436]
[1730739305081,49.54133924,2414.5,2414.3,0.41437]
[1730739305382,3.46888924,2414.2,2414.1,0.41441]
[1730739305578,1.6633,2414.9,2414.2,1.03599]
[1730739305775,3.46888924,2414.9,2414.8,0.41429]
[1730739306387,3.2078,2415.1,2414.7,1.6633]
[1730739306580,6.67668924,2415.1,2415.0,0.41426]
[1730739306775,3.46888924,2415.1,2415.0,0.41426]
[1730739306980,9.90825574,2415.1,2414.5,1.08285998]
[1730739307182,9.90825574,2415.1,2413.9,2.30436133]
[1730739307183,9.90825574,2414.6,2414.1,4.37044996]
[1730739307376,3.46888924,2414.2,2414.1,0.41441]
[1730739307584,40.8,2414.4,2414.1,1.03604]
[1730739307881,3.46888924,2414.5,2414.1,3.044555]
[1730739308091,3.46888924,2414.5,2414.4,0.41436]
[1730739308278,3.2078,2414.9,2414.1,5.2400815]
[1730739308480,3.2078,2414.9,2414.8,0.41429]
[1730739308679,3.2078,2415.2,2414.3,7.52222648]
[1730739308977,3.46888924,2415.1,2414.9,3.2078]
[1730739309184,3.46888924,2415.1,2414.7,1.03575]
[1730739309477,0.41421,2415.3,2414.9,0.41428]
[1730739309478,3.46888924,2415.0,2414.9,0.41428]
[1730739310786,6.4393665,2415.5,2414.7,4.24355]
[1730739310988,3.46888924,2415.2,2415.1,0.41424]
[1730739311289,3.46888924,2415.2,2414.7,4.24355]
[1730739311290,3.46888924,2415.0,2414.7,5.32640998]
[1730739311585,3.46888924,2414.8,2414.7,0.41431]
[1730739311779,3.46888924,2414.9,2414.8,0.41429]
[1730739312693,3.46888924,2414.9,2414.5,5.32650998]
[1730739312694,1.7221,2415.1,2415.0,0.41426]
[1730739313091,5.19098924,2415.1,2414.6,1.08285998]
[1730739313392,3.46888924,2414.9,2414.6,1.03581]
[1730739313590,3.46888924,2414.9,2414.8,0.41429]
[1730739315693,3.88316924,2414.9,2414.7,0.4143]
[1730739315892,9.90825574,2414.8,2414.4,3.456]
[1730739316091,3.46888924,2414.7,2414.6,0.41432]
[1730739316983,3.46888924,2414.7,2414.4,3.456]
[1730739317197,3.46888924,2414.5,2414.4,3.87036]
[1730739317791,44.26888924,2414.5,2414.4,3.87036]
[1730739319192,0.4143,2414.8,2414.6,0.41432]
[1730739319396,3.46888924,2414.5,2414.4,0.41436]
[1730739319891,44.26888924,2414.5,2414.4,0.41436]
[1730739320098,3.2591,2415.0,2414.4,4.55596]
[1730739320392,3.2078,2415.2,2414.4,4.55596]
[1730739320393,3.2078,2415.2,2415.1,0.41424]
[1730739320591,3.88311924,2415.2,2414.7,3.2078]
[1730739320794,3.46888924,2414.9,2414.7,3.3257]
[1730739321096,3.2078,2414.9,2414.8,0.41428]
[1730739321492,3.46888924,2414.9,2414.8,0.41428]
[1730739321697,40.8,2415.1,2415.0,0.41426]
[1730739322195,44.26888924,2415.1,2415.0,0.41426]
[1730739322693,44.68313924,2415.1,2414.7,3.3257]
[1730739322892,44.68313924,2415.1,2414.9,0.41428]
[1730739322893,3.46888924,2415.0,2414.9,0.41428]
[1730739323903,3.88314924,2415.0,2414.8,0.41428]
[1730739324500,3.46888924,2415.0,2414.9,0.41428]
[1730739324701,3.88315924,2415.0,2414.8,0.41428]
[1730739324903,3.46888924,2415.0,2414.9,0.41428]
[1730739329706,9.90825574,2415.0,2414.4,1.08285998]
[1730739329905,41.83563,2415.1,2414.3,0.41438]
[1730739329906,3.46888924,2414.4,2414.3,0.41438]
[1730739330302,3.46888924,2414.4,2414.3,0.97899638]
[1730739330602,4.8687,2414.7,2414.3,0.41438]
[1730739330797,4.8687,2414.7,2414.6,0.41433]
[1730739331004,1.6609,2414.7,2414.6,0.41433]
[1730739331207,5.12978924,2414.7,2414.6,0.41433]
[1730739331408,5.54410924,2414.7,2414.6,0.41433]
[1730739331704,5.12978924,2414.7,2414.6,0.41433]